fUST/lending_fUST_20250408
["ID","MTS","AMOUNT","RATE_DAILY","PERIOD"]
[357507704,1744096007030,-203.46916425,0.00045661,30]
[357507705,1744096007058,-598.53333575,0.00045661,30]
[357507706,1744096007084,-598.53333575,0.00045661,30]
[357507707,1744096007112,-37840.23815998,0.00045661,30]
[357507708,1744096007139,-37840.23815998,0.00045661,30]
[357507709,1744096007164,-266.42274872,0.00045661,30]
[357507710,1744096007191,-266.42274872,0.00045661,30]
[357507711,1744096007218,-35557.67658852,0.00045661,30]
[357507712,1744096007243,-35557.67658852,0.00045661,30]
[357507713,1744096007268,-271.63956653,0.00045661,30]
[357507714,1744096007294,-271.63956653,0.00045661,30]
[357507715,1744096007318,-1043.0,0.0004567,120]
[357507716,1744096007343,-1043.0,0.0004568,120]
[357507717,1744096007376,-500.0,0.00045684,120]
[357507718,1744096007402,-1043.0,0.0004569,120]
[357507719,1744096007429,-999.0,0.00045698,120]
[357507720,1744096007460,-500.0,0.00045784,120]
[357507721,1744096007486,-500.0,0.00045884,120]
[357507722,1744096007514,-500.0,0.0004595,30]
[357507723,1744096007540,-1043.0,0.0004598,120]
[357507724,1744096007568,-500.0,0.00045984,120]
[357507725,1744096007593,-1043.0,0.0004599,120]
[357507726,1744096007619,-167.39528724,0.00045999,60]
[357507727,1744096007645,-500.0,0.00046,120]
[357507728,1744096007671,-8641.25069656,0.00046,120]
[357507729,1744096007700,-49466.9393,0.00046,30]
[357507730,1744096007726,-191118.53666661,0.00046,60]
[357507731,1744096008226,-451.334134,0.00019473,2]
[357507732,1744096021155,-577.9,0.00035186,30]
[357507733,1744096021187,-154663.26,0.000357,30]
[357507734,1744096021218,-154663.26,0.000382,30]
[357507735,1744096021245,-1700.0,0.00040896,60]
[357507736,1744096021274,-154663.26,0.00041,30]
[357507737,1744096021301,-1700.0,0.00041444,60]
[357507738,1744096021328,-241.252958,0.00041643,120]
[357507739,1744096021354,-241.252958,0.00041643,120]
[357507740,1744096021380,-1700.0,0.00041992,60]
[357507741,1744096021406,-1700.0,0.0004254,60]
[357507742,1744096021431,-241.252958,0.000428,120]
[357507743,1744096021461,-241.252958,0.000428,120]
[357507744,1744096021487,-1700.0,0.00043088,60]
[357507745,1744096021513,-154663.26,0.000436,30]
[357507746,1744096021538,-1700.0,0.00043636,60]
[357507747,1744096021564,-241.252958,0.000444,120]
[357507748,1744096021589,-241.252958,0.000444,120]
[357507749,1744096021614,-1700.0,0.00044732,120]
[357507750,1744096021639,-1700.0,0.0004528,120]
[357507751,1744096021665,-241.252958,0.00045661,120]
[357507752,1744096021691,-241.252966,0.00045661,120]
[357507753,1744096021715,-1700.0,0.00045828,120]
[357507754,1744096021740,-58881.46333339,0.00046,60]
[357507755,1744096021766,-200.0,0.00046,120]
[357507756,1744096021791,-3267.61622253,0.00046,120]
[357507757,1744096021816,-1121.0,0.00046,120]
[357507758,1744096021841,-151.0,0.00046,120]
[357507759,1744096021866,-349.082701,0.00046,120]
[357507760,1744096021892,-349.082701,0.00046,120]
[357507761,1744096021917,-222.903516,0.00046,120]
[357507762,1744096021943,-222.903516,0.00046,120]
[357507763,1744096021969,-184.586752,0.00046,120]
[357507764,1744096021994,-184.586752,0.00046,120]
[357507765,1744096022020,-308.597697,0.00046,120]
[357507766,1744096022187,-308.597697,0.00046,120]
[357507767,1744096022214,-379.84731927,0.00046046,120]
[357507768,1744096022242,-500.0,0.00046084,120]
[357507769,1744096022268,-992.10594327,0.00046084,30]
[357507770,1744096022294,-250000.0,0.000461,60]
[357507771,1744096022320,-907.02053822,0.00046134,30]
[357507772,1744096022346,-999.0,0.00046164,120]
[357507773,1744096022374,-500.0,0.00046184,120]
[357507774,1744096022401,-250000.0,0.000462,60]
[357507775,1744096022428,-305.0,0.0004622,30]
[357507776,1744096022454,-500.0,0.00046284,120]
[357507777,1744096022483,-50158.72641274,0.000463,30]
[357507778,1744096022510,-250000.0,0.000463,60]
[357507779,1744096022537,-1700.0,0.00046376,120]
[357507780,1744096022564,-500.0,0.00046384,120]
[357507781,1744096022592,-238.0185,0.00046457,120]
[357507782,1744096022620,-500.0,0.00046484,120]
[357507783,1744096022648,-453.79571,0.00046532,120]
[357507784,1744096022676,-500.0,0.00046575,120]
[357507785,1744096022704,-500.0,0.00046575,120]
[357507786,1744096022733,-500.0,0.00046575,120]
[357507787,1744096022760,-251.98655324,0.00046575,120]
[357507788,1744096022788,-500.0,0.00046575,120]
[357507789,1744096022815,-500.0,0.00046584,120]
[357507790,1744096022843,-999.0,0.0004663,120]
[357507791,1744096022871,-500.0,0.00046684,120]
[357507792,1744096022897,-151.0,0.00046688,120]
[357507793,1744096022924,-151.0,0.00046688,120]
[357507794,1744096022949,-151.0,0.00046688,120]
[357507795,1744096022976,-349.082701,0.00046688,120]
[357507796,1744096023003,-349.082701,0.00046688,120]
[357507797,1744096023037,-349.082701,0.00046688,120]
[357507798,1744096023065,-349.082701,0.00046688,120]
[357507799,1744096023093,-349.082701,0.00046688,120]
[357507800,1744096023122,-349.082701,0.00046688,120]
[357507801,1744096023150,-222.903516,0.00046688,120]
[357507802,1744096023178,-222.903516,0.00046688,120]
[357507803,1744096023206,-222.903516,0.00046688,120]
[357507804,1744096023233,-222.903518,0.00046688,120]
[357507805,1744096023262,-500.0,0.000467,100]
[357507806,1744096023290,-500.0,0.00046731,101]
[357507807,1744096023318,-500.0,0.00046761,102]
[357507808,1744096023346,-500.0,0.00046784,120]
[357507809,1744096023373,-500.0,0.00046792,103]
[357507810,1744096023400,-14232.48,0.000468,30]
[357507811,1744096023428,-500.0,0.00046822,104]
[357507812,1744096023456,-500.0,0.00046853,105]
[357507813,1744096023486,-184.586752,0.00046863,120]
[357507814,1744096023515,-184.586745,0.00046863,120]
[357507815,1744096023544,-308.597697,0.00046863,120]
[357507816,1744096023570,-308.597697,0.00046863,120]
[357507817,1744096023597,-500.0,0.00046883,106]
[357507818,1744096023625,-500.0,0.00046884,120]
[357507819,1744096023652,-12425.57,0.000469,30]
[357507820,1744096023681,-500.0,0.00046914,107]
[357507821,1744096023710,-4432.55283917,0.00046914,120]
[357507822,1744096023739,-1700.0,0.00046924,120]
[357507823,1744096023767,-150.09,0.00046924,30]
[357507824,1744096023794,-200.9882668,0.00046924,30]
[357507825,1744096023821,-150.09,0.00046924,30]
[357507826,1744096023848,-150.27279795,0.00046924,30]
[357507827,1744096023875,-150.09,0.00046924,30]
[357507828,1744096023904,-285.36652524,0.00046924,30]
[357507829,1744096023932,-150.09,0.00046924,30]
[357507830,1744096023960,-151.11491219,0.00046924,30]
[357507831,1744096023989,-4432.55283917,0.00046929,120]
[357507832,1744096024017,-4432.55283917,0.00046937,120]
[357507833,1744096024044,-21530.30597967,0.00046943,90]
[357507834,1744096024073,-1000.0,0.00046944,108]
[357507835,1744096024107,-4432.55283917,0.00046982,120]
[357507836,1744096024136,-500.0,0.00046984,120]
[357507837,1744096024163,-481.68,0.0004699,30]
[357507838,1744096024191,-5000.0,0.0004699,30]
[357507839,1744096024221,-9541.00277836,0.00047,120]
[357507840,1744096024249,-500.0,0.00047084,120]
[357507841,1744096024280,-999.0,0.00047095,120]
[357507842,1744096024308,-500.0,0.00047184,120]
[357507843,1744096024336,-500.0,0.00047284,120]
[357507844,1744096024366,-500.0,0.00047384,120]
[357507845,1744096024394,-1700.0,0.00047472,120]
[357507846,1744096024424,-500.0,0.00047484,120]
[357507847,1744096024455,-999.0,0.00047561,120]
[357507848,1744096024490,-500.0,0.00047584,120]
[357507849,1744096024517,-500.0,0.00047684,120]
[357507850,1744096024547,-500.0,0.00047784,120]
[357507851,1744096024576,-500.0,0.00047884,120]
[357507852,1744096024603,-500.0,0.00047984,120]
[357507853,1744096024630,-15155.14834467,0.00048,120]
[357507854,1744096024658,-200.0,0.00048,120]
[357507855,1744096024684,-1121.0,0.00048,120]
[357507856,1744096024841,-1500.52,0.00048,30]
[357507857,1744096024870,-1700.0,0.0004802,120]
[357507858,1744096024900,-999.0,0.00048027,120]
[357507859,1744096024930,-500.0,0.00048084,120]
[357507860,1744096024959,-151.0,0.00048099,30]
[357507861,1744096024987,-1114.377424,0.00048118,30]
[357507862,1744096025016,-500.0,0.00048184,120]
[357507863,1744096025044,-500.0,0.00048284,120]
[357507864,1744096025073,-500.0,0.00048384,120]
[357507865,1744096025101,-151.0,0.00048386,30]
[357507866,1744096025129,-500.0,0.00048484,120]
[357507867,1744096025157,-999.0,0.00048493,120]
[357507868,1744096025184,-1799.52848825,0.000485,30]
[357507869,1744096025212,-50000.0,0.000485,120]
[357507870,1744096025239,-50000.0,0.000485,120]
[357507871,1744096025265,-11609.46,0.000485,120]
[357507872,1744096025292,-151.0,0.000485,120]
[357507873,1744096025318,-349.082701,0.000485,120]
[357507874,1744096025345,-349.082708,0.000485,120]
[357507875,1744096025378,-408.13,0.000485,45]
[357507876,1744096025410,-408.13,0.000485,45]
[357507877,1744096025442,-408.13,0.000485,45]
[357507878,1744096025480,-408.13,0.000485,45]
[357507879,1744096025512,-408.13,0.000485,45]
[357507880,1744096025543,-408.13,0.000485,45]
[357507881,1744096025576,-408.13,0.000485,45]
[357507882,1744096025606,-408.13,0.000485,45]
[357507883,1744096025638,-408.13,0.000485,45]
[357507884,1744096025668,-408.13,0.000485,45]
[357507885,1744096025698,-408.13,0.000485,45]
[357507886,1744096025728,-408.13,0.000485,45]
[357507887,1744096025758,-408.13,0.000485,45]
[357507888,1744096025788,-408.13,0.000485,45]
[357507889,1744096025818,-408.13,0.000485,45]
[357507890,1744096025847,-408.13,0.000485,45]
[357507891,1744096025877,-408.13,0.000485,45]
[357507892,1744096025907,-408.13,0.000485,45]
[357507893,1744096025936,-408.13,0.000485,45]
[357507894,1744096025965,-408.13,0.000485,45]
[357507895,1744096025995,-408.13,0.000485,45]
[357507896,1744096026024,-408.13,0.000485,45]
[357507897,1744096026053,-408.13,0.000485,45]
[357507898,1744096026084,-408.13,0.000485,45]
[357507899,1744096026110,-1700.0,0.00048568,120]
[357507900,1744096026141,-500.0,0.00048584,120]
[357507901,1744096026166,-151.0,0.00048605,30]
[357507902,1744096026199,-151.0,0.00048647,30]
[357507903,1744096026240,-500.0,0.00048684,120]
[357507904,1744096026276,-500.0,0.00048784,120]
[357507905,1744096026313,-151.0,0.00048811,30]
[357507906,1744096026350,-500.0,0.00048884,120]
[357507907,1744096026390,-999.0,0.00048958,120]
[357507908,1744096026426,-500.0,0.00048984,120]
[357507909,1744096026466,-15050.0,0.00049,120]
[357507910,1744096026502,-234.0,0.00049,90]
[357507911,1744096026539,-500.0,0.00049084,120]
[357507912,1744096026576,-467.59404168,0.00049116,120]
[357507913,1744096026613,-500.0,0.00049184,120]
[357507914,1744096026653,-500.0,0.00049284,120]
[357507915,1744096026684,-750.0,0.00049315,120]
[357507916,1744096026720,-750.0,0.00049315,120]
[357507917,1744096026756,-750.0,0.00049315,120]
[357507918,1744096026791,-750.0,0.00049315,120]
[357507919,1744096026824,-750.0,0.00049315,120]
[357507920,1744096026856,-844.38178132,0.00049315,120]
[357507921,1744096026889,-1000.0,0.00049315,60]
[357507922,1744096026922,-1000.0,0.00049315,60]
[357507923,1744096026958,-1000.0,0.00049315,60]
[357507924,1744096026991,-1000.0,0.00049315,60]
[357507925,1744096027024,-1000.0,0.00049315,60]
[357507926,1744096027056,-240.87816727,0.00049315,60]
[357507927,1744096027090,-514.62108799,0.00049315,120]
[357507928,1744096027122,-2000.0,0.00049315,120]
[357507929,1744096027156,-500.0,0.00049315,120]
[357507930,1744096027188,-500.0,0.00049315,120]
[357507931,1744096027223,-500.0,0.00049315,120]
[357507932,1744096027258,-500.0,0.00049315,120]
[357507933,1744096027292,-500.0,0.00049315,120]
[357507934,1744096027326,-617.49098656,0.00049315,120]
[357507935,1744096027359,-500.0,0.00049384,120]
[357507936,1744096027394,-999.0,0.00049424,120]
[357507937,1744096027428,-500.0,0.00049484,120]
[357507938,1744096027465,-359.9796305,0.00049573,30]
[357507939,1744096027498,-500.0,0.00049584,120]
[357507940,1744096027525,-2005.60924643,0.000496,120]
[357507941,1744096027556,-858.28,0.00049684,120]
[357507942,1744096027583,-500.0,0.000498,120]
[357507943,1744096027611,-999.0,0.0004989,120]
[357507944,1744096027637,-384.78274513,0.00049999,120]
[357507945,1744096027664,-500.0,0.00049999,31]
[357507946,1744096027691,-500.0,0.00049999,31]
[357507947,1744096027903,-398.81766299,0.00049999,31]
[357507948,1744096027948,-354.98219967,0.00049999,120]
[357507949,1744096027978,-488.59686876,0.00049999,120]
[357507950,1744096028007,-250.22072814,0.00049999,120]
[357507951,1744096028034,-500.0,0.00049999,120]
[357507952,1744096028061,-500.0,0.00049999,120]
[357507953,1744096028089,-250.3515614,0.00049999,120]
[357507954,1744096028115,-1000.00906767,0.0005,30]
[357507955,1744096028141,-733.94689662,0.0005,120]
[357507956,1744096028168,-1000.0,0.0005,120]
[357507957,1744096028194,-217.768513,0.0005,30]
[357507958,1744096028222,-5000.0,0.0005,120]
[357507959,1744096028249,-180.0,0.0005,120]
[357507960,1744096028276,-39678.16871515,0.0005,120]
[357507961,1744096028303,-1121.0,0.0005,120]
[357507962,1744096028328,-7327.1,0.0005,120]
[357507963,1744096028354,-14285.0,0.0005,30]
[357507964,1744096028380,-190.9,0.0005,120]
[357507965,1744096028407,-502.91203636,0.0005,60]
[357507966,1744096028433,-419.46366559,0.0005,120]
[357507967,1744096028466,-999.0,0.00050356,120]
[357507968,1744096028494,-360.0653681,0.00050468,30]
[357507969,1744096028522,-360.0653681,0.00050468,30]
[357507970,1744096028549,-360.0653681,0.00050468,30]
[357507971,1744096028574,-150.0,0.00050591,120]
[357507972,1744096028600,-999.0,0.00050821,120]
[357507973,1744096028626,-100000.0,0.000509,35]
[357507974,1744096028652,-3000.0,0.00051,85]
[357507975,1744096028677,-3000.0,0.0005101,85]
[357507976,1744096028705,-3000.0,0.0005102,85]
[357507977,1744096028731,-3000.0,0.0005103,85]
[357507978,1744096028757,-3000.0,0.0005104,85]
[357507979,1744096028784,-3000.0,0.0005105,85]
[357507980,1744096028810,-3000.0,0.0005106,85]
[357507981,1744096028836,-5953.202399,0.0005107,85]
[357507982,1744096028862,-238.0185,0.00051089,120]
[357507983,1744096028888,-5000.0,0.0005123,120]
[357507984,1744096028915,-999.0,0.00051287,120]
[357507985,1744096028941,-308.7737875,0.0005129,30]
[357507986,1744096028975,-564.2060481,0.00051376,30]
[357507987,1744096029002,-999.0,0.00051753,120]
[357507988,1744096029035,-408.13,0.000518,51]
[357507989,1744096029068,-408.13,0.000518,51]
[357507990,1744096029100,-408.13,0.000518,51]
[357507991,1744096029132,-408.13,0.000518,51]
[357507992,1744096029163,-408.13,0.000518,51]
[357507993,1744096029195,-408.13,0.000518,51]
[357507994,1744096029229,-408.13,0.000518,51]
[357507995,1744096029261,-408.13,0.000518,51]
[357507996,1744096029293,-408.13,0.000518,51]
[357507997,1744096029323,-408.13,0.000518,51]
[357507998,1744096029355,-408.13,0.000518,51]
[357507999,1744096029386,-408.13,0.000518,51]
[357508000,1744096029416,-408.13,0.000518,51]
[357508001,1744096029452,-408.13,0.000518,51]
[357508002,1744096029487,-408.13,0.000518,51]
[357508003,1744096029517,-408.13,0.000518,51]
[357508004,1744096029546,-453.79571,0.00051853,120]
[357508005,1744096029572,-151.0,0.00051918,120]
[357508006,1744096029598,-1422.75589558,0.00052,120]
[357508007,1744096029625,-1121.0,0.00052,120]
[357508008,1744096029650,-2000.0,0.00052055,120]
[357508009,1744096029677,-10000.0,0.00052055,120]
[357508010,1744096029706,-5202.0,0.00052055,120]
[357508011,1744096029732,-360.0653681,0.00052213,30]
[357508012,1744096029760,-165.1835744,0.00052213,30]
[357508013,1744096029787,-999.0,0.00052219,120]
[357508014,1744096029813,-304.0866535,0.00052352,30]
[357508015,1744096029839,-360.0653681,0.00052352,30]
[357508016,1744096029865,-360.0653681,0.00052352,30]
[357508017,1744096029892,-360.0653681,0.00052352,30]
[357508018,1744096029918,-360.0653681,0.00052352,30]
[357508019,1744096029944,-360.0653681,0.00052352,30]
[357508020,1744096029976,-360.0653681,0.00052352,30]
[357508021,1744096030006,-360.0653681,0.00052352,30]
[357508022,1744096030037,-360.0653681,0.00052352,30]
[357508023,1744096030073,-360.0653681,0.00052352,30]
[357508024,1744096030105,-368.0008331,0.00052352,30]
[357508025,1744096030138,-999.0,0.00052684,120]
[357508026,1744096030167,-156.6537003,0.000529,30]
[357508027,1744096030198,-426.1949654,0.000529,30]
[357508028,1744096030235,-156.6537003,0.000529,30]
[357508029,1744096030269,-154.4696946,0.000529,30]
[357508030,1744096030297,-156.6537003,0.000529,30]
[357508031,1744096030325,-153.0,0.000529,30]
[357508032,1744096030351,-153.0,0.000529,30]
[357508033,1744096030378,-156.6537003,0.000529,30]
[357508034,1744096030404,-156.6537003,0.000529,30]
[357508035,1744096030431,-159.1550355,0.000529,30]
[357508036,1744096030460,-153.0,0.000529,30]
[357508037,1744096030490,-153.0,0.000529,30]
[357508038,1744096030519,-154.1147527,0.000529,30]
[357508039,1744096030662,-999.0,0.0005315,120]
[357508040,1744096030691,-150.0,0.00053591,120]
[357508041,1744096030724,-999.0,0.00053616,120]
[357508042,1744096030753,-1114.83556176,0.00054,120]
[357508043,1744096030780,-679.64507663,0.00054,120]
[357508044,1744096030808,-511.68,0.00054,120]
[357508045,1744096030836,-1121.0,0.00054,120]
[357508046,1744096030864,-217.0,0.00054,120]
[357508047,1744096030891,-1000.85094564,0.00054082,120]
[357508048,1744096030917,-564.2060481,0.00054358,30]
[357508049,1744096030944,-564.2060481,0.00054358,30]
[357508050,1744096030979,-564.2060481,0.00054358,30]
[357508051,1744096031010,-564.2060481,0.00054358,30]
[357508052,1744096031056,-156.6537003,0.00054358,30]
[357508053,1744096031090,-172.2278852,0.00054358,30]
[357508054,1744096031121,-156.6537003,0.00054358,30]
[357508055,1744096031151,-153.0,0.0005446,30]
[357508056,1744096031182,-156.6537003,0.0005446,30]
[357508057,1744096031217,-153.0,0.0005446,30]
[357508058,1744096031248,-156.6537003,0.0005446,30]
[357508059,1744096031279,-156.6537003,0.0005446,30]
[357508060,1744096031309,-153.0,0.0005446,30]
[357508061,1744096031339,-156.6537003,0.0005446,30]
[357508062,1744096031369,-156.6537003,0.0005446,30]
[357508063,1744096031398,-15000.0,0.000545,120]
[357508064,1744096031427,-12000.0,0.000545,120]
[357508065,1744096031463,-210.66623015,0.00054794,120]
[357508066,1744096031491,-2000.0,0.00054795,120]
[357508067,1744096031666,154663.26,0.000458,30]
[357508068,1744096031923,154663.26,0.00048,30]
[357508069,1744096032131,2747.55,0.000384,30]
[357508070,1744096032193,2747.55,0.00041,30]
[357508071,1744096032409,500.0,0.000485,30]
[357508072,1744096032509,2747.55,0.000432,30]
[357508073,1744096032556,2747.55,0.000456,30]
[357508074,1744096032605,5648.33815814,0.000362,98]
[357508075,1744096032641,2747.55,0.000468,30]
[357508076,1744096032723,-713.5,0.00019471,3]
[357508077,1744096032747,-1904.56163466,0.00019473,2]
[357508078,1744096032771,-500.0,0.00019478,2]
[357508079,1744096032794,-500.0,0.00019478,2]
[357508080,1744096032817,-500.0,0.00019478,2]
[357508081,1744096032841,-300.0,0.00019478,2]
[357508082,1744096032862,-500.0,0.00019479,2]
[357508083,1744096032885,-349.988,0.00019479,2]
[357508084,1744096032907,-500.0,0.00019479,2]
[357508085,1744096032930,-500.0,0.00019479,2]
[357508086,1744096032955,-500.0,0.00019479,2]
[357508087,1744096032977,-500.0,0.00019479,2]
[357508088,1744096033000,-500.0,0.00019479,2]
[357508089,1744096033023,-502.06694443,0.00019479,2]
[357508090,1744096033049,-538.97672865,0.00019479,2]
[357508091,1744096033072,-500.0,0.00019479,2]
[357508092,1744096033096,-500.0,0.00019479,2]
[357508093,1744096033119,-500.0,0.00019479,2]
[357508094,1744096033142,-500.0,0.00019479,2]
[357508095,1744096033166,-500.0,0.00019479,2]
[357508096,1744096033189,-500.0,0.00019479,2]
[357508097,1744096033214,-500.0,0.00019479,2]
[357508098,1744096033236,-500.0,0.00019479,2]
[357508099,1744096033259,-500.0,0.00019479,2]
[357508100,1744096033281,-500.0,0.00019479,2]
[357508101,1744096033303,-513.00860677,0.00019479,2]
[357508102,1744096033325,-500.0,0.00019479,2]
[357508103,1744096033347,-500.0,0.00019479,2]
[357508104,1744096033370,-500.0,0.00019479,2]
[357508105,1744096033393,-500.0,0.00019479,2]
[357508106,1744096033423,-500.0,0.00019479,2]
[357508107,1744096033454,-500.0,0.00019479,2]
[357508108,1744096033484,-500.0,0.00019479,2]
[357508109,1744096033509,-500.0,0.00019479,2]
[357508110,1744096033532,-500.0,0.00019479,2]
[357508111,1744096033557,-554.81195199,0.00019479,2]
[357508112,1744096033580,-500.0,0.00019479,2]
[357508113,1744096033603,-178.19724609,0.00019479,2]
[357508114,1744096033626,-500.0,0.00019479,2]
[357508115,1744096033649,-500.0,0.00019479,2]
[357508116,1744096033672,-500.0,0.00019479,2]
[357508117,1744096033694,-500.0,0.00019479,2]
[357508118,1744096033717,-500.0,0.00019479,2]
[357508119,1744096033740,-500.0,0.00019479,2]
[357508120,1744096033763,-500.0,0.00019479,2]
[357508121,1744096033785,-502.13618749,0.00019479,2]
[357508122,1744096033807,-500.0,0.00019479,2]
[357508123,1744096033829,-500.0,0.00019479,2]
[357508124,1744096033851,-500.0,0.00019479,2]
[357508125,1744096033873,-500.0,0.00019479,2]
[357508126,1744096033895,-500.0,0.00019479,2]
[357508127,1744096033918,-500.0,0.00019479,2]
[357508128,1744096033940,-500.0,0.00019479,2]
[357508129,1744096033963,-616.55197266,0.00019479,2]
[357508130,1744096033985,-500.0,0.00019479,2]
[357508131,1744096034007,-500.0,0.00019479,2]
[357508132,1744096034030,-847.3487881,0.0001948,2]
[357508133,1744096034052,-575.51,0.0001948,2]
[357508134,1744096034073,-500.0,0.0001948,2]
[357508135,1744096034293,-500.0,0.0001948,2]
[357508136,1744096034314,-500.0,0.0001948,2]
[357508137,1744096034338,-500.0,0.0001948,2]
[357508138,1744096034362,-500.0,0.0001948,2]
[357508139,1744096034384,-355.42847263,0.0001948,2]
[357508140,1744096034665,-500.0,0.00019479,2]
[357508141,1744096034687,-500.0,0.00019479,2]
[357508142,1744096034711,-144.57152737,0.0001948,2]
[357508143,1744096034732,-500.0,0.0001948,2]
[357508144,1744096034754,-246.90738814,0.0001948,2]
[357508145,1744096034788,5648.33815812,0.00036759,101]
[357508146,1744096035057,156.6537003,0.00054358,30]
[357508147,1744096035089,2275.84661768,0.00054794,120]
[357508148,1744096035120,3585.92966632,0.00054794,120]
[357508149,1744096036729,151.40798,0.00049315,120]
[357508150,1744096037280,771.166,0.00049315,30]
[357508151,1744096037606,2200.0,0.00049315,30]
[357508152,1744096037828,553.194996,0.00035186,30]
[357508153,1744096038150,5648.33815812,0.00054139,120]
[357508154,1744096039925,500.0,0.00044168,30]
[357508155,1744096040110,-500.0,0.00019479,2]
[357508156,1744096040132,-500.0,0.00019479,2]
[357508157,1744096040154,-253.09261186,0.0001948,2]
[357508158,1744096040176,-500.0,0.0001948,2]
[357508159,1744096040198,-500.0,0.0001948,2]
[357508160,1744096040220,-500.0,0.0001948,2]
[357508161,1744096040241,-500.0,0.0001948,2]
[357508162,1744096040262,-500.0,0.0001948,2]
[357508163,1744096040283,-500.0,0.0001948,2]
[357508164,1744096040305,-500.0,0.0001948,2]
[357508165,1744096040327,-500.0,0.0001948,2]
[357508166,1744096040348,-500.0,0.0001948,2]
[357508167,1744096040370,-500.0,0.0001948,2]
[357508168,1744096040391,-500.0,0.0001948,2]
[357508169,1744096040412,-500.0,0.0001948,2]
[357508170,1744096040433,-601.16436247,0.0001948,2]
[357508171,1744096040455,-500.0,0.0001948,2]
[357508172,1744096040479,-1165.58,0.0001948,2]
[357508173,1744096040501,-500.0,0.0001948,2]
[357508174,1744096040521,-500.0,0.0001948,2]
[357508175,1744096040544,-544.98,0.0001948,2]
[357508176,1744096040565,-500.0,0.0001948,2]
[357508177,1744096040587,-1018.84,0.0001948,2]
[357508178,1744096040608,-500.0,0.0001948,2]
[357508179,1744096040629,-599.49328414,0.0001948,2]
[357508180,1744096040650,-500.0,0.0001948,2]
[357508181,1744096040670,-194.83979701,0.0001948,2]
[357508182,1744096040692,-500.0,0.0001948,2]
[357508183,1744096040714,-500.0,0.0001948,2]
[357508184,1744096040737,-500.0,0.0001948,2]
[357508185,1744096040759,-500.0,0.0001948,2]
[357508186,1744096040782,-500.0,0.0001948,2]
[357508187,1744096040803,-500.0,0.0001948,2]
[357508188,1744096040825,-397.37181879,0.0001948,2]
[357508189,1744096040846,-500.0,0.0001948,2]
[357508190,1744096040869,-500.0,0.0001948,2]
[357508191,1744096040891,-500.0,0.0001948,2]
[357508192,1744096040912,-500.0,0.0001948,2]
[357508193,1744096040935,-500.0,0.0001948,2]
[357508194,1744096040956,-500.0,0.0001948,2]
[357508195,1744096040979,-417.26575273,0.0001948,2]
[357508196,1744096042097,531.0,0.00035186,30]
[357508197,1744096045095,-1733.29,0.00019478,2]
[357508198,1744096045117,-1572.23,0.00019478,2]
[357508199,1744096045138,-500.0,0.00019479,2]
[357508200,1744096045159,-500.0,0.00019479,2]
[357508201,1744096045179,-500.0,0.00019479,2]
[357508202,1744096045201,-651.19,0.0001948,2]
[357508203,1744096045224,-82.73424727,0.0001948,2]